fUST/lending_fUST_20250829
["ID","MTS","AMOUNT","RATE_DAILY","PERIOD"]
[381912459,1756403451690,-480.0,0.00020547,2]
[381912460,1756403451699,-747.81,0.00020547,2]
[381912461,1756403451708,-1257.19,0.00020547,2]
[381912462,1756403451717,-480.0,0.00020547,2]
[381912463,1756403451726,-480.0,0.00020547,2]
[381912464,1756403451735,-1075.1,0.00020547,2]
[381912465,1756403451744,-480.0,0.00020547,2]
[381912466,1756403451754,-480.0,0.00020547,2]
[381912467,1756403451763,-862.42,0.00020547,2]
[381912468,1756403451773,-905.21,0.00020547,2]
[381912469,1756403451785,-516.35,0.00020547,2]
[381912470,1756403451794,-480.0,0.00020547,2]
[381912471,1756403451803,-1016.19,0.00020547,2]
[381912472,1756403451812,-1498.06,0.00020547,2]
[381912473,1756403451822,-578.22,0.00020547,2]
[381912474,1756403451831,-1661.74,0.00020547,2]
[381912475,1756403451840,-870.58,0.00020547,2]
[381912476,1756403451849,-523.93,0.00020547,2]
[381912477,1756403451860,-480.0,0.00020547,2]
[381912478,1756403451869,-480.0,0.00020547,2]
[381912479,1756403451878,-728.83,0.00020547,2]
[381912480,1756403451887,-1211.03,0.00020547,2]
[381912481,1756403451897,-1500.0,0.00020568,2]
[381912482,1756403451906,-1034.66495259,0.00020568,2]
[381912483,1756403451915,-1500.0,0.00020568,2]
[381912484,1756403451924,-1500.0,0.00020568,2]
[381912485,1756403451934,-1500.0,0.00020568,2]
[381912486,1756403451943,-1500.0,0.00020568,2]
[381912487,1756403451952,-1500.0,0.00020568,2]
[381912488,1756403451962,-1194.23969264,0.00020568,2]
[381912489,1756403451971,-1500.0,0.00020568,2]
[381912490,1756403451980,-1500.0,0.00020568,2]
[381912491,1756403451989,-850.93706637,0.00020568,2]
[381912492,1756403451998,-990.815,0.00020645,2]
[381912493,1756403452007,-2261.869,0.00020645,2]
[381912494,1756403452016,-160.0,0.00020645,2]
[381912495,1756403452026,-640.03,0.00020645,2]
[381912496,1756403452035,-151.0,0.000207,4]
[381912497,1756403452045,-173.72917618,0.00020721,2]
[381912498,1756403452058,-201.0,0.00020726,2]
[381912499,1756403452070,-152.0,0.00020729,2]
[381912500,1756403452079,-420.0,0.0002079,2]
[381912501,1756403452088,-153.198706,0.00020796,20]
[381912502,1756403452097,-151.0,0.000208,4]
[381912503,1756403452106,-2000.0,0.00020816,2]
[381912504,1756403452115,-1049.06719486,0.00020816,2]
[381912505,1756403452124,-2000.0,0.00020816,2]
[381912506,1756403452134,-2000.0,0.00020816,2]
[381912507,1756403452143,-1495.9954359,0.00020816,2]
[381912508,1756403452153,-480.0,0.00020821,2]
[381912509,1756403452162,-480.0,0.00020821,2]
[381912510,1756403452171,-480.0,0.00020821,2]
[381912511,1756403452181,-557.2,0.00020821,2]
[381912512,1756403452190,-480.0,0.00020821,2]
[381912513,1756403452199,-227.12,0.00020821,2]
[381912514,1756403452209,-480.0,0.00020821,2]
[381912515,1756403452218,-480.0,0.00020821,2]
[381912516,1756403452227,-480.0,0.00020821,2]
[381912517,1756403452236,-480.0,0.00020821,2]
[381912518,1756403452246,-480.0,0.00020821,2]
[381912519,1756403452255,-480.0,0.00020821,2]
[381912520,1756403452265,-480.0,0.00020821,2]
[381912521,1756403452274,-480.0,0.00020821,2]
[381912522,1756403452283,-480.0,0.00020821,2]
[381912523,1756403452292,-578.31,0.00020821,2]
[381912524,1756403452301,-480.0,0.00020821,2]
[381912525,1756403452310,-480.0,0.00020821,2]
[381912526,1756403452320,-480.0,0.00020821,2]
[381912527,1756403452329,-1589.56,0.00020821,2]
[381912528,1756403452338,-480.0,0.00020821,2]
[381912529,1756403452347,-852.15,0.00020821,2]
[381912530,1756403452357,-1579.79,0.00020821,2]
[381912531,1756403452366,-2512.98,0.00020821,2]
[381912532,1756403452375,-1332.21,0.00020821,2]
[381912533,1756403452508,-480.0,0.00020821,2]
[381912534,1756403452518,-480.0,0.00020821,2]
[381912535,1756403452528,-960.01,0.00020821,2]
[381912536,1756403452537,-950.36,0.00020821,2]
[381912537,1756403452546,-480.0,0.00020821,2]
[381912538,1756403452555,-294.00022637,0.00020821,2]
[381912539,1756403452564,-480.0,0.00020821,2]
[381912540,1756403452574,-480.0,0.00020821,2]
[381912541,1756403452583,-1847.51,0.00020821,2]
[381912542,1756403452593,-480.0,0.00020821,2]
[381912543,1756403452602,-802.0,0.00020821,2]
[381912544,1756403452611,-531.81,0.00020821,2]
[381912545,1756403452621,-480.0,0.00020821,2]
[381912546,1756403452630,-574.61,0.00020821,2]
[381912547,1756403452639,-480.0,0.00020821,2]
[381912548,1756403452648,-901.94,0.00020821,2]
[381912549,1756403452657,-480.0,0.00020821,2]
[381912550,1756403452667,-480.0,0.00020821,2]
[381912551,1756403452676,-747.81,0.00020821,2]
[381912552,1756403452685,-1257.19,0.00020821,2]
[381912553,1756403452695,-480.0,0.00020821,2]
[381912554,1756403452703,-480.0,0.00020821,2]
[381912555,1756403452713,-1075.1,0.00020821,2]
[381912556,1756403452722,-480.0,0.00020821,2]
[381912557,1756403452732,-480.0,0.00020821,2]
[381912558,1756403452741,-862.42,0.00020821,2]
[381912559,1756403452751,-905.21,0.00020821,2]
[381912560,1756403452762,-516.35,0.00020821,2]
[381912561,1756403452771,-480.0,0.00020821,2]
[381912562,1756403452783,-1016.19,0.00020821,2]
[381912563,1756403452792,-1498.06,0.00020821,2]
[381912564,1756403452802,-578.22,0.00020821,2]
[381912565,1756403452811,-1661.74,0.00020821,2]
[381912566,1756403452820,-870.58,0.00020821,2]
[381912567,1756403452830,-523.93,0.00020821,2]
[381912568,1756403452840,-482.5729473,0.00020821,2]
[381912569,1756403452849,-480.0,0.00020821,2]
[381912570,1756403452860,-728.83,0.00020821,2]
[381912571,1756403452869,-1211.03,0.00020821,2]
[381912572,1756403452878,-1500.0,0.00020868,2]
[381912573,1756403452887,-1500.0,0.00020868,2]
[381912574,1756403452897,-714.399,0.00020974,2]
[381912575,1756403452907,-1922.80515757,0.00021016,2]
[381912576,1756403452916,-250.0,0.00021026,2]
[381912577,1756403452926,-168.0,0.00021033,2]
[381912578,1756403452935,-153.198706,0.00021062,20]
[381912579,1756403452944,-480.0,0.00021095,2]
[381912580,1756403452954,-480.0,0.00021095,2]
[381912581,1756403452963,-480.0,0.00021095,2]
[381912582,1756403452972,-557.2,0.00021095,2]
[381912583,1756403452981,-480.0,0.00021095,2]
[381912584,1756403452991,-441.6412125,0.00021095,2]
[381912585,1756403452999,-480.0,0.00021095,2]
[381912586,1756403453010,-480.0,0.00021095,2]
[381912587,1756403453019,-480.0,0.00021095,2]
[381912588,1756403453028,-480.0,0.00021095,2]
[381912589,1756403453037,-480.0,0.00021095,2]
[381912590,1756403453047,-480.0,0.00021095,2]
[381912591,1756403453055,-480.0,0.00021095,2]
[381912592,1756403453064,-480.0,0.00021095,2]
[381912593,1756403453073,-578.31,0.00021095,2]
[381912594,1756403453083,-480.0,0.00021095,2]
[381912595,1756403453092,-161.4171169,0.00021095,2]
[381912596,1756403453102,-480.0,0.00021095,2]
[381912597,1756403453112,-1589.56,0.00021095,2]
[381912598,1756403453121,-480.0,0.00021095,2]
[381912599,1756403453131,-852.15,0.00021095,2]
[381912600,1756403453141,-1579.79,0.00021095,2]
[381912601,1756403453151,-2512.98,0.00021095,2]
[381912602,1756403453160,-1332.21,0.00021095,2]
[381912603,1756403453169,-480.0,0.00021095,2]
[381912604,1756403453179,-480.0,0.00021095,2]
[381912605,1756403453188,-960.01,0.00021095,2]
[381912606,1756403453198,-950.36,0.00021095,2]
[381912607,1756403453207,-480.0,0.00021095,2]
[381912608,1756403453217,-480.0,0.00021095,2]
[381912609,1756403453226,-480.0,0.00021095,2]
[381912610,1756403453235,-1847.51,0.00021095,2]
[381912611,1756403453245,-480.0,0.00021095,2]
[381912612,1756403453254,-802.0,0.00021095,2]
[381912613,1756403453264,-531.81,0.00021095,2]
[381912614,1756403453274,-480.0,0.00021095,2]
[381912615,1756403453283,-574.61,0.00021095,2]
[381912616,1756403453293,-480.0,0.00021095,2]
[381912617,1756403453302,-901.94,0.00021095,2]
[381912618,1756403453311,-480.0,0.00021095,2]
[381912619,1756403453321,-480.0,0.00021095,2]
[381912620,1756403453331,-747.81,0.00021095,2]
[381912621,1756403453340,-1257.19,0.00021095,2]
[381912622,1756403453350,-443.17577481,0.00021095,2]
[381912623,1756403453359,-480.0,0.00021095,2]
[381912624,1756403453368,-1075.1,0.00021095,2]
[381912625,1756403453378,-480.0,0.00021095,2]
[381912626,1756403453388,-480.0,0.00021095,2]
[381912627,1756403453398,-862.42,0.00021095,2]
[381912628,1756403453408,-905.21,0.00021095,2]
[381912629,1756403453417,-516.35,0.00021095,2]
[381912630,1756403453427,-480.0,0.00021095,2]
[381912631,1756403453436,-1016.19,0.00021095,2]
[381912632,1756403453445,-1498.06,0.00021095,2]
[381912633,1756403453454,-578.22,0.00021095,2]
[381912634,1756403453464,-1661.74,0.00021095,2]
[381912635,1756403453473,-870.58,0.00021095,2]
[381912636,1756403453483,-523.93,0.00021095,2]
[381912637,1756403453493,-155.21238954,0.00021095,2]
[381912638,1756403453502,-728.83,0.00021095,2]
[381912639,1756403453512,-1211.03,0.00021095,2]
[381912640,1756403453522,-151.0,0.000211,4]
[381912641,1756403453531,-247.30510355,0.00021116,2]
[381912642,1756403453540,-1152.65920903,0.00021116,2]
[381912643,1756403453549,-655.26472966,0.00021116,2]
[381912644,1756403453559,-294.80324733,0.00021116,2]
[381912645,1756403453568,-1500.04654528,0.00021116,2]
[381912646,1756403453577,-1500.0,0.00021116,2]
[381912647,1756403453587,-2000.0,0.00021116,2]
[381912648,1756403453596,-2000.0,0.00021116,2]
[381912649,1756403453605,-3263.3886416,0.00021124,2]
[381912650,1756403453614,-9421.2040403,0.00021124,2]
[381912651,1756403453624,-551.274812,0.00021124,2]
[381912652,1756403453633,-160.0,0.0002115,2]
[381912653,1756403453642,-168.0,0.00021169,2]
[381912654,1756403453651,-153.198706,0.00021202,10]
[381912655,1756403453661,-153.198706,0.00021232,7]
[381912656,1756403453670,-4343.76957474,0.00021263,2]
[381912657,1756403453822,-95656.23042526,0.00021263,2]
[381912658,1756403453833,-2982.72644183,0.0002127,2]
[381912659,1756403453842,-168.0,0.00021295,2]
[381912660,1756403453854,-4000.0,0.00021307,4]
[381912661,1756403453863,-1000.0,0.00021364,2]
[381912662,1756403453874,-752.96060155,0.00021364,2]
[381912663,1756403453883,-1012.06810708,0.00021364,2]
[381912664,1756403453893,-480.0,0.00021369,2]
[381912665,1756403453902,-480.0,0.00021369,2]
[381912666,1756403453911,-307.74001164,0.00021369,2]
[381912667,1756403453921,-557.2,0.00021369,2]
[381912668,1756403453930,-480.0,0.00021369,2]
[381912669,1756403453939,-480.0,0.00021369,2]
[381912670,1756403453949,-480.0,0.00021369,2]
[381912671,1756403453959,-480.0,0.00021369,2]
[381912672,1756403453980,-480.0,0.00021369,2]
[381912673,1756403453990,-480.0,0.00021369,2]
[381912674,1756403454000,-480.0,0.00021369,2]
[381912675,1756403454011,-480.0,0.00021369,2]
[381912676,1756403454021,-480.0,0.00021369,2]
[381912677,1756403454030,-578.31,0.00021369,2]
[381912678,1756403454040,-480.0,0.00021369,2]
[381912679,1756403454049,-480.0,0.00021369,2]
[381912680,1756403454058,-1589.56,0.00021369,2]
[381912681,1756403454068,-560.84214409,0.00021369,2]
[381912682,1756403454077,-852.15,0.00021369,2]
[381912683,1756403454087,-1579.79,0.00021369,2]
[381912684,1756403454097,-2512.98,0.00021369,2]
[381912685,1756403454106,-1332.21,0.00021369,2]
[381912686,1756403454116,-480.0,0.00021369,2]
[381912687,1756403454125,-480.0,0.00021369,2]
[381912688,1756403454134,-960.01,0.00021369,2]
[381912689,1756403454143,-950.36,0.00021369,2]
[381912690,1756403454153,-480.0,0.00021369,2]
[381912691,1756403454163,-480.0,0.00021369,2]
[381912692,1756403454172,-480.0,0.00021369,2]
[381912693,1756403454181,-1847.51,0.00021369,2]
[381912694,1756403454190,-480.0,0.00021369,2]
[381912695,1756403454199,-802.0,0.00021369,2]
[381912696,1756403454210,-531.81,0.00021369,2]
[381912697,1756403454222,-480.0,0.00021369,2]
[381912698,1756403454231,-574.61,0.00021369,2]
[381912699,1756403454241,-480.0,0.00021369,2]
[381912700,1756403454250,-901.94,0.00021369,2]
[381912701,1756403454259,-587.86361088,0.00021369,2]
[381912702,1756403454269,-480.0,0.00021369,2]
[381912703,1756403454279,-747.81,0.00021369,2]
[381912704,1756403454288,-1257.19,0.00021369,2]
[381912705,1756403454297,-480.0,0.00021369,2]
[381912706,1756403454306,-1075.1,0.00021369,2]
[381912707,1756403454316,-480.0,0.00021369,2]
[381912708,1756403454325,-480.0,0.00021369,2]
[381912709,1756403454334,-862.42,0.00021369,2]
[381912710,1756403454344,-905.21,0.00021369,2]
[381912711,1756403454353,-516.35,0.00021369,2]
[381912712,1756403454362,-480.0,0.00021369,2]
[381912713,1756403454371,-1016.19,0.00021369,2]
[381912714,1756403454381,-356.89596351,0.00021369,2]
[381912715,1756403454621,-480.0,0.00019178,2]
[381912716,1756403454630,-480.0,0.00019178,2]
[381912717,1756403454640,-265.22050779,0.00019452,2]
[381912718,1756403454952,-480.0,0.00019178,2]
[381912719,1756403454962,-384.29419228,0.00019178,2]
[381912720,1756403454971,-514.29383561,0.00019178,2]
[381912721,1756403454982,-214.77949221,0.00019452,2]
[381912722,1756403454991,-480.0,0.00019726,2]
[381912723,1756403455001,-480.0,0.0002,2]
[381912724,1756403455011,-480.0,0.00020273,2]
[381912725,1756403455020,-310.87207522,0.00020547,2]
[381912729,1756403568981,150.5,0.0002191,120]
[381912730,1756403569358,152.0,0.0002191,120]
[381912731,1756403569414,150.5,0.000219,120]
[381912732,1756403569800,152.0,0.000219,120]
[381912733,1756403569954,270.17,0.0002189,120]
[381912734,1756403570241,152.0,0.0002189,120]
[381912735,1756403570672,152.0,0.0002494,120]
[381912736,1756403571139,152.0,0.0002493,120]
[381912737,1756403571590,152.0,0.0002492,120]
[381912738,1756403703486,162.517437,0.00013699,2]
[381912740,1756403732606,184.0,0.00021698,120]
[381912741,1756403733934,184.0,0.00022783,120]
[381912742,1756403735471,184.0,0.00023922,120]
[381912743,1756403736863,184.0,0.00025118,120]
[381912744,1756403849859,277.54387822,0.00030345,60]
[381912745,1756403989656,182.0,0.00018,2]
[381912747,1756404289275,150.5,0.0002191,120]
[381912748,1756404289780,150.5,0.000219,120]
[381912749,1756404290231,150.5,0.0002189,120]
[381912750,1756404290672,158.39,0.0002488,120]
[381912752,1756404597208,162.517437,0.00013699,2]
[381912802,1756404632457,-4081.9985611,0.00018356,2]
[381912804,1756404632466,-356.10620514,0.00019078,2]
[381912806,1756404632475,-73.63704981,0.00019172,2]
[381912808,1756404632487,-226.36295019,0.00019172,2]
[381912810,1756404632496,-1200.0,0.00019172,2]
[381912812,1756404632505,-500.0,0.00019173,2]
[381912814,1756404632513,-500.0,0.00019173,2]
[381912816,1756404632522,-500.0,0.00019173,2]
[381912818,1756404632532,-500.0,0.00019173,2]
[381912820,1756404632541,-428.95851949,0.00019173,2]
[381912936,1756404638212,-71.04148051,0.00019173,2]
[381912937,1756404638221,-1200.0,0.00019176,2]
[381912938,1756404638232,-480.0,0.00019178,2]
[381912939,1756404638242,-481.07404517,0.00019178,2]
[381912940,1756404638252,-480.0,0.00019178,2]
[381912941,1756404638261,-480.0,0.00019178,2]
[381912942,1756404638270,-480.0,0.00019178,2]
[381912943,1756404638279,-480.0,0.00019178,2]
[381912944,1756404638289,-156.57748121,0.00019178,2]
[381912945,1756404638298,-480.0,0.00019178,2]
[381912946,1756404638307,-480.0,0.00019178,2]
[381912947,1756404638316,-480.0,0.00019178,2]
[381912948,1756404638325,-480.0,0.00019178,2]
[381912949,1756404638335,-480.0,0.00019178,2]
[381912950,1756404638344,-480.0,0.00019178,2]
[381912951,1756404638352,-570.70975375,0.00019178,2]
[381912952,1756404638361,-480.0,0.00019178,2]
[381912953,1756404638371,-480.0,0.00019178,2]
[381912954,1756404638380,-480.0,0.00019178,2]
[381912956,1756404638547,-480.0,0.00019178,2]
[381912957,1756404638558,-480.0,0.00019178,2]
[381912958,1756404638567,-481.49006348,0.00019178,2]
[381912959,1756404638576,-480.0,0.00019178,2]
[381912960,1756404638587,-594.19,0.00019178,2]
[381912961,1756404638596,-480.0,0.00019178,2]
[381912962,1756404638605,-480.0,0.00019178,2]
[381912963,1756404638615,-480.0,0.00019178,2]
[381912964,1756404638624,-480.0,0.00019178,2]
[381912965,1756404638635,-480.0,0.00019178,2]
[381912966,1756404638645,-480.0,0.00019178,2]
[381912967,1756404638655,-480.0,0.00019178,2]
[381912968,1756404638665,-480.0,0.00019178,2]
[381912969,1756404638675,-480.0,0.00019178,2]
[381912970,1756404638686,-482.36,0.00019178,2]
[381912971,1756404638695,-480.0,0.00019178,2]
[381912972,1756404638705,-480.0,0.00019178,2]
[381912973,1756404638715,-480.0,0.00019178,2]
[381912974,1756404638724,-480.0,0.00019178,2]
[381912975,1756404638734,-400.0,0.00019178,2]
[381912976,1756404638743,-483.58015102,0.00019178,2]
[381912977,1756404638752,-480.0,0.00019178,2]
[381912978,1756404638763,-480.0,0.00019178,2]
[381912979,1756404638772,-480.0,0.00019178,2]
[381912980,1756404638781,-486.76,0.00019178,2]
[381912981,1756404638791,-480.0,0.00019178,2]
[381912982,1756404638801,-480.0,0.00019178,2]
[381912983,1756404638810,-480.0,0.00019178,2]
[381912984,1756404638820,-480.0,0.00019178,2]
[381912985,1756404638829,-404.6668297,0.00019178,2]
[381912986,1756404638838,-480.0,0.00019178,2]
[381912987,1756404638847,-480.0,0.00019178,2]
[381912988,1756404638856,-480.0,0.00019178,2]
[381912989,1756404638866,-480.0,0.00019178,2]
[381912990,1756404638875,-480.0,0.00019178,2]
[381912991,1756404638884,-480.0,0.00019178,2]
[381912992,1756404638894,-480.0,0.00019178,2]
[381912993,1756404638903,-480.0,0.00019178,2]
[381912994,1756404638913,-480.0,0.00019178,2]
[381912995,1756404638922,-480.0,0.00019178,2]
[381912996,1756404638931,-480.0,0.00019178,2]
[381912997,1756404638941,-480.0,0.00019178,2]
[381912998,1756404638951,-480.0,0.00019178,2]
[381912999,1756404638961,-480.0,0.00019178,2]
[381913000,1756404638970,-480.0,0.00019178,2]
[381913001,1756404638980,-480.0,0.00019178,2]
[381913002,1756404638989,-480.0,0.00019178,2]
[381913003,1756404638999,-480.0,0.00019178,2]
[381913004,1756404639008,-480.0,0.00019178,2]
[381913005,1756404639018,-480.0,0.00019178,2]
[381913006,1756404639027,-480.0,0.00019178,2]
[381913007,1756404639036,-480.0,0.00019178,2]
[381913008,1756404639046,-480.0,0.00019178,2]
[381913009,1756404639055,-480.0,0.00019178,2]
[381913010,1756404639065,-480.0,0.00019178,2]
[381913011,1756404639074,-541.01,0.00019178,2]
[381913012,1756404639084,-480.0,0.00019178,2]
[381913013,1756404639093,-480.0,0.00019178,2]
[381913014,1756404639102,-480.0,0.00019178,2]
[381913015,1756404639112,-480.0,0.00019178,2]
[381913016,1756404639122,-480.0,0.00019178,2]
[381913017,1756404639131,-480.0,0.00019178,2]
[381913018,1756404639142,-480.0,0.00019178,2]
[381913019,1756404639155,-480.0,0.00019178,2]
[381913020,1756404639169,-480.0,0.00019178,2]
[381913021,1756404639179,-480.0,0.00019178,2]
[381913022,1756404639190,-480.0,0.00019178,2]
[381913023,1756404639200,-480.0,0.00019178,2]
[381913024,1756404639211,-480.0,0.00019178,2]
[381913025,1756404639220,-625.8,0.00019178,2]
[381913026,1756404639229,-480.0,0.00019178,2]
[381913027,1756404639239,-480.0,0.00019178,2]
[381913028,1756404639249,-480.0,0.00019178,2]
[381913029,1756404639258,-480.0,0.00019178,2]
[381913030,1756404639267,-480.0,0.00019178,2]
[381913031,1756404639275,-480.0,0.00019178,2]
[381913032,1756404639284,-1462.61,0.00019178,2]
[381913033,1756404639294,-480.0,0.00019178,2]
[381913034,1756404639303,-500.0,0.00019178,2]
[381913035,1756404639313,-500.0,0.00019178,2]
[381913036,1756404639322,-500.0,0.00019178,2]
[381913037,1756404639331,-371.72,0.00019178,2]
[381913038,1756404639340,-480.0,0.00019178,2]
[381913039,1756404639349,-480.0,0.00019178,2]
[381913040,1756404639359,-480.0,0.00019178,2]
[381913041,1756404639369,-480.0,0.00019178,2]
[381913042,1756404639379,-480.0,0.00019178,2]
[381913043,1756404639389,-480.0,0.00019178,2]
[381913044,1756404639398,-480.0,0.00019178,2]
[381913045,1756404639407,-480.0,0.00019178,2]
[381913046,1756404639417,-1258.4,0.00019178,2]
[381913047,1756404639426,-512.52755091,0.00019178,2]
[381913048,1756404639435,-1047.66,0.00019178,2]
[381913049,1756404639447,-1250.66,0.00019178,2]
[381913050,1756404639456,-481.85,0.00019178,2]
[381913051,1756404639465,-478.48902595,0.00019178,2]
[381913052,1756404639475,-751.62,0.00019178,2]
[381913053,1756404639484,-726.4,0.00019178,2]
[381913054,1756404639493,-546.75144138,0.00019178,2]
[381913055,1756404639502,-480.0,0.00019178,2]
[381913056,1756404639512,-480.0,0.00019178,2]
[381913057,1756404639522,-725.49,0.00019178,2]
[381913058,1756404639532,-895.92,0.00019178,2]
[381913059,1756404639542,-215.96,0.00019178,2]
[381913060,1756404639551,-608.8860949,0.00019178,2]
[381913061,1756404639561,-480.0,0.00019178,2]
[381913062,1756404639570,-800.0,0.00019178,2]
[381913063,1756404639579,-480.0,0.00019178,2]
[381913064,1756404639589,-623.18,0.00019178,2]
[381913065,1756404639598,-480.0,0.00019178,2]
[381913066,1756404639607,-480.0,0.00019178,2]
[381913067,1756404639616,-480.0,0.00019178,2]
[381913068,1756404639625,-480.0,0.00019178,2]
[381913069,1756404639634,-480.0,0.00019178,2]
[381913070,1756404639643,-480.0,0.00019178,2]
[381913071,1756404639652,-480.0,0.00019178,2]
[381913072,1756404639661,-480.0,0.00019178,2]
[381913073,1756404639671,-718.68,0.00019178,2]
[381913074,1756404639680,-209.14501779,0.00019178,2]
[381913075,1756404639690,-480.0,0.00019178,2]
[381913076,1756404639699,-554.3,0.00019178,2]
[381913077,1756404639708,-480.0,0.00019178,2]
[381913078,1756404639718,-846.83,0.00019178,2]
[381913080,1756404639727,-480.0,0.00019178,2]
[381913082,1756404639737,-480.0,0.00019178,2]
[381913083,1756404639747,-480.0,0.00019178,2]
[381913084,1756404639756,-754.34,0.00019178,2]
[381913085,1756404639766,-1248.38,0.00019178,2]
[381913086,1756404639775,-1384.79,0.00019178,2]
[381913087,1756404639784,-480.0,0.00019178,2]
[381913088,1756404639794,-2094.15,0.00019178,2]
[381913089,1756404639803,-668.33,0.00019178,2]
[381913090,1756404639812,-480.0,0.00019178,2]
[381913091,1756404639821,-480.0,0.00019178,2]
[381913092,1756404639830,-480.0,0.00019178,2]
[381913093,1756404639839,-480.0,0.00019178,2]
[381913094,1756404639850,-480.0,0.00019178,2]
[381913095,1756404639860,-582.86,0.00019178,2]
[381913096,1756404639869,-168.9,0.00019178,2]
[381913097,1756404639879,-1009.2,0.00019178,2]
[381913098,1756404639888,-480.0,0.00019178,2]
[381913099,1756404639897,-480.0,0.00019178,2]
[381913100,1756404639907,-480.0,0.00019178,2]
[381913101,1756404639916,-791.97,0.00019178,2]
[381913102,1756404639925,-604.91530578,0.00019178,2]
[381913103,1756404639935,-187.78006525,0.00019343,2]
[381913104,1756404639944,-576.99,0.00019451,2]
[381913105,1756404639953,-1054.67,0.00019451,2]
[381913106,1756404639962,-480.0,0.00019451,2]
[381913107,1756404639971,-480.0,0.00019452,2]
[381913108,1756404639981,-480.0,0.00019452,2]
[381913109,1756404639991,-480.0,0.00019452,2]
[381913110,1756404640000,-480.0,0.00019452,2]
[381913111,1756404640010,-480.0,0.00019452,2]
[381913112,1756404640019,-480.0,0.00019452,2]
[381913113,1756404640029,-166.59,0.00019452,2]
[381913114,1756404640039,-480.0,0.00019452,2]
[381913116,1756404640048,-161.4171169,0.00019452,2]
[381913117,1756404640057,-339.48,0.00019452,2]
[381913118,1756404640067,-480.0,0.00019452,2]
[381913119,1756404640076,-480.0,0.00019452,2]
[381913120,1756404640086,-441.6412125,0.00019452,2]
[381913121,1756404640096,-480.0,0.00019452,2]
[381913122,1756404640107,-480.0,0.00019452,2]
[381913123,1756404640116,-294.00022637,0.00019452,2]
[381913124,1756404640125,-480.0,0.00019452,2]
[381913125,1756404640135,-480.0,0.00019452,2]
[381913126,1756404640145,-480.0,0.00019452,2]
[381913127,1756404640154,-480.0,0.00019452,2]
[381913128,1756404640167,-480.0,0.00019452,2]
[381913129,1756404640176,-480.0,0.00019452,2]
[381913130,1756404640186,-480.0,0.00019452,2]
[381913131,1756404640196,-480.0,0.00019452,2]
[381913132,1756404640206,-480.0,0.00019452,2]
[381913133,1756404640216,-480.0,0.00019452,2]
[381913134,1756404640226,-480.0,0.00019452,2]
[381913135,1756404640236,-480.0,0.00019452,2]
[381913136,1756404640246,-480.0,0.00019452,2]
[381913137,1756404640257,-480.0,0.00019452,2]
[381913138,1756404640267,-480.0,0.00019452,2]
[381913139,1756404640276,-480.0,0.00019452,2]
[381913140,1756404640286,-480.0,0.00019452,2]
[381913141,1756404640295,-480.0,0.00019452,2]